Cogmind - Beta 11.1 @@@ ROGUE MODE // 2022.05.02 @ 05:25:52 Player: Olga Result: Destroyed by G-47 Trooper with Particle Gun Performance ------------- Evolutions (3) 1500 Regions Visited (8) 1600 Robots Destroyed (5) 25 Value Destroyed (101) 101 Prototype IDs (26) 520 Alien Tech Used (0) 0 Bonus (605) 605 TOTAL SCORE: 4351 Bonus ------- Pacifist 270 Follower Combat Kills 35 Aligned with FarCom 300 Cogmind --------- Core Integrity 0/700 Matter 280/300 Energy 89/100 System Corruption 0% Temperature Cool (10) Movement Flying (55) Location -7/Lower Caves Parts ------- > --- POWER (1) -------- (None) > --- PROPULSION (4) --- Makeshift Flight Unit > --- UTILITY (6) ------ Advanced Terrain Scan Processor Improved Targeting Computer Improved Melee Analysis Suite Makeshift System Shield Makeshift System Shield System Restoration Module > --- WEAPON (2) ------- Battle Rifle Battle Rifle > --- INVENTORY (5) ---- Chronowheel Latent Energy Streamer AWS/Autocannon Peak State ------------ > --- POWER ------------ Light Nuclear Core > --- PROPULSION ------- VTOL Module VTOL Module Xenon Bombardment Thruster Xenon Bombardment Thruster > --- UTILITY ---------- Small Storage Unit Advanced Terrain Scan Processor Advanced Terrain Scan Processor Seismic Detector Targeting Computer Hardened Light Armor Plating > --- WEAPON ----------- Gauss Cannon > --- INVENTORY -------- Heavy Deuterium Engine Chronowheel Latent Energy Streamer AWS/Autocannon [Rating: 37] Favorites ----------- Power Light Nuclear Core Engine Ion Engine Power Core Light Nuclear Core Propulsion Flight Unit Leg Aluminum Leg Flight Unit Flight Unit Utility Advanced Terrain Scan Processor Device Seismic Detector Storage Small Storage Unit Processor Advanced Terrain Scan Processor Hackware Makeshift System Shield Protection Hardened Light Armor Plating Weapon EM Pulse Gun Energy Gun EM Pulse Gun Ballistic Gun Light Assault Rifle Ballistic Cannon Gauss Cannon Piercing Weapon Spear Special Melee Weapon Improved Datajack Build | -11 -10 -10 -10 -9 -8 -7 -7 -7 ------- Run | Scr Mat Min Exi Min Mat Fac Low Low Slots Evolved 6 | . . . . . 4 2 . . Power . | . . . . . . . . . Propulsion 2 | . . . . . 2 . . . Utility 4 | . . . . . 2 2 . . Weapon . | . . . . . . . . . Parts Attached 44 | . 1 3 . 1 3 25 6 5 Power 4 | . . . . . 1 3 . . Engine 2 | . . . . . 1 1 . . Core 2 | . . . . . . 2 . . Reactor . | . . . . . . . . . Propulsion 13 | . . 2 . . 1 9 . 1 Treads . | . . . . . . . . . Leg . | . . . . . . . . . Wheel . | . . . . . . . . . Hover . | . . . . . . . . . Flight 13 | . . 2 . . 1 9 . 1 Utility 14 | . . . . 1 . 8 3 2 Device 2 | . . . . . . 1 1 . Storage . | . . . . . . . . . Processor 6 | . . . . 1 . 3 2 . Hackware 2 | . . . . . . . . 2 Protection 4 | . . . . . . 4 . . Artifact . | . . . . . . . . . Weapon 13 | . 1 1 . . 1 5 3 2 Energy Gun 2 | . . 1 . . 1 . . . Energy Cannon . | . . . . . . . . . Ballistic Gun 5 | . 1 . . . . 1 2 1 Ballistic Cannon 4 | . . . . . . 4 . . Launcher . | . . . . . . . . . Special Weapon . | . . . . . . . . . Impact Weapon . | . . . . . . . . . Slashing Weapon . | . . . . . . . . . Piercing Weapon 1 | . . . . . . . . 1 Special Melee Weapon 1 | . . . . . . . 1 . Unidentified Prototypes 3 | . . . . . 2 1 . . Parts Lost 20 | . 1 . . . 6 12 . 1 Power 1 | . . . . . . 1 . . Propulsion 10 | . . . . . 2 7 . 1 Utility 5 | . . . . . 1 4 . . Weapon 4 | . 1 . . . 3 . . . Highest Loss Streak 6 | . 1 . . . 6 4 . 1 To Critical Strikes . | . . . . . . . . . Average Slot Usage (%) 64 | . 81 71 71 81 52 57 58 66 Core 1 | . . . . . . 1 2 . Leg 1 | . 28 . . . . . . . Flight 19 | . . 28 28 28 21 21 9 12 Device 3 | . . . . . . 4 7 7 Storage 7 | . 14 14 14 14 9 6 . . Processor 15 | . . . . 10 9 17 29 29 Energy Gun 4 | . 10 14 14 14 10 . . . Ballistic Gun 6 | . 14 14 14 14 1 . 2 11 Naked Turns . | . . . . . . . . . Heaviest Build 23 | 14 13 8 8 8 8 23 8 5 Greatest Support 20 | 20 20 8 8 8 12 20 10 14 Greatest Overweight (x) 1 | . . . . . 1 1 . . Average Overweight (x) . | . . . . . . . . . Largest Inventory Capacity 8 | . 8 8 8 8 8 8 5 5 Average Capacity 7 | . 8 8 8 8 8 7 5 5 Most Carried 8 | . 8 8 8 8 7 8 5 5 Average Carried 6 | . 6 7 7 8 6 7 5 5 Final Capacity 8 | 8 8 8 8 8 8 5 5 5 Final Carried 8 | 6 8 8 8 8 7 5 5 5 Class Distribution -------------------- 65% | Mutant 22% | Derelict-Mutant 12% | Sprinter Dominant Class ---------------- Mutant | -10/Materials Mutant | -10/Mines Mutant | -10/Exiles Mutant | -9/Mines Mutant | -8/Materials Mutant | -7/Factory Derelict-Mutant | -7/Lower Caves Derelict-Mutant | -7/Lower Caves Resources | -11 -10 -10 -10 -9 -8 -7 -7 -7 ----------- Run | Scr Mat Min Exi Min Mat Fac Low Low Matter Collected 589 | 200 . 35 . 10 16 110 36 182 Remotely . | . . . . . . . . . Salvage Created 79 | . . . . . 36 43 . . Parts 5 | . . . . . 1 4 . . Haulers Intercepted . | . . . . . . . . . Recyclers Shooed . | . . . . . . . . . Parts Field Recycled . | . . . . . . . . . Retrieved Matter . | . . . . . . . . . Parts Self-Destructed . | . . . . . . . . . Prevented . | . . . . . . . . . Kills | -11 -10 -10 -10 -9 -8 -7 -7 -7 ------- Run | Scr Mat Min Exi Min Mat Fac Low Low Combat Hostiles Destroyed 5 | . . . . . 2 3 . . Guns 1 | . . . . . 1 . . . Cannons 3 | . . . . . . 3 . . AOE 1 | . . . . . 1 . . . Classes Destroyed 1 | . . . . . 1 . . . Swarmer 5 | . . . . . 2 3 . . Best Kill Streak 2 | . . . . . 2 2 . . Combat Bots Only 2 | . . . . . 2 2 . . Max Kills in Single Turn 2 | . . . . . 2 1 . . Gunslinging . | . . . . . . . . . Exploded 1 | . . . . . 1 . . . Melee . | . . . . . . . . . Uniques/NPCs Destroyed . | . . . . . . . . . Combat | -11 -10 -10 -10 -9 -8 -7 -7 -7 -------- Run | Scr Mat Min Exi Min Mat Fac Low Low Damage Taken 2320 | . 388 29 . . 291 1370 29 213 Core 848 | . 50 . . . 91 604 29 74 Absorbed by Shields 39 | . . . . . . 39 . . Core Remaining (%) 87 | 100 . . . 80 83 . . . Volleys Fired 11 | . . . . . 3 8 . . Largest 2 | . . . . . 2 1 . . Hottest 101 | . . . . . 101 48 . . Shots Fired 14 | . . . . . 6 8 . . Gun 6 | . . . . . 6 . . . Cannon 8 | . . . . . . 8 . . Launcher . | . . . . . . . . . Special . | . . . . . . . . . Kinetic 8 | . . . . . . 8 . . Thermal 3 | . . . . . 3 . . . Explosive . | . . . . . . . . . Electromagnetic 3 | . . . . . 3 . . . Robot Hit Streak 5 | . . . . . 2 5 . . Robot Miss Streak 3 | . . . . . 2 3 . . Penetration Max . | . . . . . . . . . Secondary Targets . | . . . . . . . . . Shots Hit Robots 9 | . . . . . 3 6 . . Core Hits 5 | . . . . . 2 3 . . Critical Kills . | . . . . . . . . . Critical Parts Destroyed . | . . . . . . . . . Critical Strikes . | . . . . . . . . . Melee Attacks . | . . . . . . . . . Impact . | . . . . . . . . . Slashing . | . . . . . . . . . Piercing . | . . . . . . . . . Sneak Attacks . | . . . . . . . . . Combat Hostiles . | . . . . . . . . . Follow-up Attacks . | . . . . . . . . . Damage Inflicted 260 | . . . . . 88 172 . . Guns 46 | . . . . . 46 . . . Cannons 172 | . . . . . . 172 . . Explosions 40 | . . . . . 40 . . . Melee . | . . . . . . . . . Ramming 2 | . . . . . 2 . . . Kinetic 172 | . . . . . . 172 . . Thermal 76 | . . . . . 76 . . . Explosive . | . . . . . . . . . Electromagnetic 10 | . . . . . 10 . . . Impact . | . . . . . . . . . Slashing . | . . . . . . . . . Piercing . | . . . . . . . . . Highest Corruption 1 | . . . . . . 1 1 . Average Corruption 1 | . . . . . . 1 1 . Corruption Purged 1 | . . . . . . . 1 . Corruption Blocked . | . . . . . . . . . Overload Shots . | . . . . . . . . . Overflow Damage . | . . . . . . . . . Projectiles . | . . . . . . . . . Explosions . | . . . . . . . . . Melee . | . . . . . . . . . Knockbacks 2 | . . . . . . 2 . . Impact . | . . . . . . . . . Kinetic 2 | . . . . . . 2 . . Secondary . | . . . . . . . . . Self-Inflicted Damage 1 | . . . . . 1 . . . Shots . | . . . . . . . . . Rammed 2 | . . . . . 2 . . . Targets Rammed 2 | . . . . . 2 . . . Kicked . | . . . . . . . . . Crushed . | . . . . . . . . . Highest Temperature 37 | . . . . . 37 36 . 6 Average Temperature 14 | . . . . . 19 13 . 6 Received Heat Transfer 573 | . 75 9 . . 9 318 . 162 Siege Activations . | . . . . . . . . . Robots Corrupted . | . . . . . . . . . Combat Hostiles . | . . . . . . . . . Parts Fried . | . . . . . . . . . Impact Corruptions . | . . . . . . . . . Robots Melted . | . . . . . . . . . Combat Hostiles . | . . . . . . . . . Parts Melted . | . . . . . . . . . Heat Transferred 124 | . . . . . 124 . . . Parts Sabotaged . | . . . . . . . . . Parts Stolen 1 | . . . . . . . 1 . Parts Stripped . | . . . . . . . . . Power Chain Reactions 1 | . . . . . 1 . . . Missiles Intercepted . | . . . . . . . . . Alert | -11 -10 -10 -10 -9 -8 -7 -7 -7 ------- Run | Scr Mat Min Exi Min Mat Fac Low Low Peak Influence 314 | . . 32 . . 69 314 . . Initial 30 | . . . . . . 30 . . Average 88 | . . 3 . . 42 148 . . Maximum Alert Level 1 | . . . . . . 1 . . Low Security (%) 83 | . 100 100 . 100 100 72 . . Level 1 16 | . . . . . . 27 . . Level 2 . | . . . . . . . . . Level 3 . | . . . . . . . . . Level 4 . | . . . . . . . . . Level 5 . | . . . . . . . . . High Security . | . . . . . . . . . Max Security . | . . . . . . . . . Squads Dispatched 4 | . . . . . 2 2 . . Investigation 2 | . . . . . . 2 . . Extermination . | . . . . . . . . . Reinforcement 2 | . . . . . 2 . . . Assault . | . . . . . . . . . Garrison . | . . . . . . . . . Intercept . | . . . . . . . . . Searches Triggered . | . . . . . . . . . Construction Impeded . | . . . . . . . . . Haulers Reinforced . | . . . . . . . . . Active Scanning Responses . | . . . . . . . . . Cargo Convoy Interrupts . | . . . . . . . . . Stealth | -11 -10 -10 -10 -9 -8 -7 -7 -7 --------- Run | Scr Mat Min Exi Min Mat Fac Low Low Distress Signals 7 | . 1 . . . . 6 . . Communications Jammed . | . . . . . . . . . Distress Signals . | . . . . . . . . . Times Spotted 101 | . 10 17 . . 11 59 1 3 Peak Tracking Total 12 | . 9 10 . . 11 12 1 3 Tactical Retreats 20 | . . 2 . . 1 17 . . Traps | -11 -10 -10 -10 -9 -8 -7 -7 -7 ------- Run | Scr Mat Min Exi Min Mat Fac Low Low Traps Triggered 3 | . . . . . . 3 . . Indirectly . | . . . . . . . . . Trap Hack Attempts . | . . . . . . . . . Triggered . | . . . . . . . . . Disarmed . | . . . . . . . . . Reprogrammed . | . . . . . . . . . Reused . | . . . . . . . . . Traps Extracted . | . . . . . . . . . Installed . | . . . . . . . . . Triggered . | . . . . . . . . . Machines | -11 -10 -10 -10 -9 -8 -7 -7 -7 ---------- Run | Scr Mat Min Exi Min Mat Fac Low Low Machines Disabled . | . . . . . . . . . Max in Single Turn . | . . . . . . . . . Machines Sabotaged . | . . . . . . . . . Garrisons Compromised . | . . . . . . . . . Overloaded Fab Kills . | . . . . . . . . . Hacking | -11 -10 -10 -10 -9 -8 -7 -7 -7 --------- Run | Scr Mat Min Exi Min Mat Fac Low Low Machines Accessed 12 | . . . 1 1 . 8 1 1 Terminals 6 | . . . . . . 6 . . Fabricators 1 | . . . . . . 1 . . Repair Stations . | . . . . . . . . . Recycling Units . | . . . . . . . . . Scanalyzers . | . . . . . . . . . Garrison Access 1 | . . . . . . 1 . . Total Hacks 24 | . . . 1 1 . 20 1 1 Successful 11 | . . . 1 1 . 7 1 1 Failed 13 | . . . . . . 13 . . Catastrophic 2 | . . . . . . 2 . . Database Lockouts . | . . . . . . . . . Manual 6 | . . . 1 . . 5 . . Terminals 17 | . . . . . . 17 . . Fabricators 1 | . . . . . . 1 . . Repair Stations . | . . . . . . . . . Recycling Units . | . . . . . . . . . Scanalyzers . | . . . . . . . . . Garrison Access 2 | . . . . . . 2 . . Terminal Hacks 11 | . . . 1 1 . 7 1 1 Open Door 3 | . . . . 1 . . 1 1 Level Access Points 1 | . . . . . . 1 . . Branch Access Points 1 | . . . . . . 1 . . Emergency Access Points 1 | . . . . . . 1 . . Terminal Index 1 | . . . . . . 1 . . Alert Level 1 | . . . . . . 1 . . Unreport Threat 1 | . . . . . . 1 . . Locate Traps 1 | . . . . . . 1 . . EX-Prototype ID Bank 1 | . . . 1 . . . . . Fabricator Hacks . | . . . . . . . . . Repair Station Hacks . | . . . . . . . . . Recycling Unit Hacks . | . . . . . . . . . Scanalyzer . | . . . . . . . . . Garrison Access Hacks . | . . . . . . . . . Unauthorized Hacks . | . . . . . . . . . Terminals . | . . . . . . . . . Fabricators . | . . . . . . . . . Repair Stations . | . . . . . . . . . Recycling Units . | . . . . . . . . . Scanalyzers . | . . . . . . . . . Garrison Access . | . . . . . . . . . Data Cores Recovered . | . . . . . . . . . Used . | . . . . . . . . . Hacking Detections 7 | . . . . . . 7 . . Full Trace Events 2 | . . . . . . 2 . . Feedback Events . | . . . . . . . . . Feedback Blocked . | . . . . . . . . . Robot Schematics Acquired . | . . . . . . . . . Robots Built . | . . . . . . . . . Authchips . | . . . . . . . . . Time . | . . . . . . . . . Total Robot Build Rating . | . . . . . . . . . Part Schematics Acquired . | . . . . . . . . . Parts Built . | . . . . . . . . . Authchips . | . . . . . . . . . Time . | . . . . . . . . . Total Part Build Rating . | . . . . . . . . . Parts Repaired . | . . . . . . . . . Time . | . . . . . . . . . Parts Recycled . | . . . . . . . . . Recycled Matter . | . . . . . . . . . Retrieved Matter . | . . . . . . . . . Retrieved Components . | . . . . . . . . . Parts Scanalyzed . | . . . . . . . . . Part Schematics Acquired . | . . . . . . . . . Parts Damaged . | . . . . . . . . . Bothacking | -11 -10 -10 -10 -9 -8 -7 -7 -7 ------------ Run | Scr Mat Min Exi Min Mat Fac Low Low Used RIF Installer . | . . . . . . . . . Robots Hacked . | . . . . . . . . . Non-combat . | . . . . . . . . . Combat . | . . . . . . . . . Robot Hacks Applied . | . . . . . . . . . Relay Couplers Released . | . . . . . . . . . Fabnet Peak Effective % . | . . . . . . . . . Robots Rewired . | . . . . . . . . . Allies Hacked . | . . . . . . . . . Hacks Repelled . | . . . . . . . . . Allies | -11 -10 -10 -10 -9 -8 -7 -7 -7 -------- Run | Scr Mat Min Exi Min Mat Fac Low Low Total Allies 4 | . . 4 . . . . . . Largest Group 3 | . . 3 . . . . . . Highest-Rated Group 40 | . . 40 . . . . . . Highest-Rated Ally 31 | . . 31 . . . . . . Total Orders . | . . . . . . . . . Ally Attacks 9 | . . 9 . . . . . . Total Damage 113 | . . 113 . . . . . . Kills 1 | . . 1 . . . . . . Allies Corrupted . | . . . . . . . . . Allies Melted . | . . . . . . . . . Intel | -11 -10 -10 -10 -9 -8 -7 -7 -7 ------- Run | Scr Mat Min Exi Min Mat Fac Low Low Robot Analysis Total . | . . . . . . . . . Derelict Logs Recovered 3 | . . 1 . 1 . . 1 . Drone Launches . | . . . . . . . . . Drone Recoveries . | . . . . . . . . . Exploration | -11 -10 -10 -10 -9 -8 -7 -7 -7 ------------- Run | Scr Mat Min Exi Min Mat Fac Low Low Turns Passed 1626 | . 79 194 117 153 54 668 186 175 Spaces Moved 3580 | 1 62 412 296 312 89 1590 464 354 Core 2 | . . . . . 2 . . . Treads . | . . . . . . . . . Legs 63 | 1 62 . . . . . . . Wheels . | . . . . . . . . . Hover . | . . . . . . . . . Flight 3515 | . . 412 296 312 87 1590 464 354 Fastest Speed 27 | 120 120 37 37 37 34 27 34 40 Average Speed 38 | 120 120 37 37 37 37 34 37 46 Slowest Speed 120 | 120 120 37 37 37 100 114 40 55 Overloaded Moves . | . . . . . . . . . Propulsion Burnouts . | . . . . . . . . . Robots Hopped 57 | . . 10 . 3 1 39 . 4 Cave-ins Triggered . | . . . . . . . . . Exploration Rate (%) 45 | 2 19 77 60 65 17 40 69 56 Regions Visited 8 Branch Regions 5 Pre-discovered Areas . | . . . . . . . . . Known Exits Taken 2 | . . . . 1 . 1 . . Unknown Exits Taken 6 | 1 1 1 1 . 1 . 1 . Scrap Searched 7 | . . 1 . 2 . . 1 3 Spaces Dug . | . . . . . . . . . Terrain Destroyed 4 | . . . . . 3 1 . . Melee . | . . . . . . . . . Projectile 1 | . . . . . . 1 . . AOE 3 | . . . . . 3 . . . Terrain Rammed . | . . . . . . . . . Walls Destroyed . | . . . . . . . . . Machines Disabled . | . . . . . . . . . Actions | -11 -10 -10 -10 -9 -8 -7 -7 -7 --------- Run | Scr Mat Min Exi Min Mat Fac Low Low Total 3752 | . 66 444 305 345 102 1661 471 358 Wait 102 | . . 34 . 36 3 29 . . Move 3465 | . 61 392 295 305 87 1514 463 348 Hop 51 | . . 9 . 3 1 36 . 2 Pick Up 21 | . 3 3 4 . 1 10 . . Fast Attach 27 | . . . . 1 2 13 6 5 Attach 15 | . . 3 . . 2 10 . . Detach 3 | . . . . . . 3 . . Swap 3 | . 1 . . . . 2 . . Drop 26 | . 1 3 6 . 2 9 2 3 Fire 11 | . . . . . 3 8 . . Melee . | . . . . . . . . . Ram 1 | . . . . . 1 . . . Kick . | . . . . . . . . . Crush . | . . . . . . . . . Escape Stasis 27 | . . . . . . 27 . . Rewire . | . . . . . . . . . Trap . | . . . . . . . . . Miscellaneous . | . . . . . . . . . Route ------- -11/Scrapyard -10/Materials -10/Mines (discovered 3 exits: [*Mat x2] / *Exi) -10/Exiles (discovered 2 exits: *Min x2) -9/Mines -8/Materials -7/Factory (discovered 6 exits: *Fac x4 / *Low x2) -7/Lower Caves -7/Lower Caves History --------- Turn | Location | Event 1 | -11/Scrapyard | Discovered new exit (range 0) 1 | -11/Scrapyard | Entered Materials 3 | -10/Materials | Discovered new exit (range 14) 80 | -10/Materials | Entered Mines 99 | -10/Mines | Assembled infested the area 145 | -10/Mines | Learned Materials stockpile data 147 | -10/Mines | Discovered new exit (range 14) 152 | -10/Mines | Assisted by bots powering up and referring to "LRC-V3" 248 | -10/Mines | Discovered new exit (range 13) 256 | -10/Mines | Escorted by a lone wolf Derelict 273 | -10/Mines | Deemed a non-threat by the Exiles lab entrance 273 | -10/Mines | Discovered new exit (range 5) 274 | -10/Mines | Entered Exiles 279 | -10/Exiles | Discovered new exit (range 15) 284 | -10/Exiles | Met 8R-AWN 290 | -10/Exiles | Met EX-HEX 300 | -10/Exiles | Met EX-BIN 304 | -10/Exiles | Aligned with FarCom system 304 | -10/Exiles | Given EX-Vault access code 314 | -10/Exiles | Build established: Mutant 314 | -10/Exiles | Opened EX-Vault 317 | -10/Exiles | Found Chronowheel 319 | -10/Exiles | Found Latent Energy Streamer 328 | -10/Exiles | Warned to stay clear of 0b10 Research branches 353 | -10/Exiles | Found AWS/Autocannon 374 | -10/Exiles | Met EX-DEC 387 | -10/Exiles | Discovered new exit (range 10) 391 | -10/Exiles | Stole three prototypes: Chronowheel, Latent Energy Streamer, AWS/Autocannon 391 | -10/Exiles | Entered Mines 442 | -9/Mines | Identified exit to Materials 544 | -9/Mines | Entered Materials 544 | -8/Materials | Evolved 4 slots: Propulsion x2, Utility x2 591 | -8/Materials | Discovered new exit (range 12) 598 | -8/Materials | Entered Factory 598 | -7/Factory | Evolved 2 slots: Utility x2 600 | -7/Factory | FarCom data flow suspended 626 | -7/Factory | Lost 6 parts (2n1u3w) 778 | -7/Factory | Discovered new exit (range 13) 940 | -7/Factory | Assembled infested ambush trap array 1093 | -7/Factory | Identified exit to Factory 1093 | -7/Factory | Identified exit to Lower Caves 1130 | -7/Factory | Lost 4 parts (1n3u) 1200 | -7/Factory | Core integrity fell below 50% 1224 | -7/Factory | Lost 3 parts (2n1u) 1228 | -7/Factory | Core integrity fell below 20% 1266 | -7/Factory | Entered Lower Caves 1337 | -7/Lower Caves | Learned Factory terminal intel 1447 | -7/Lower Caves | Discovered new exit (range 14) 1452 | -7/Lower Caves | Entered another Lower Caves area 1523 | -7/Lower Caves | Spotted B-75 Beast 1578 | -7/Lower Caves | Build established: Derelict-Mutant 1627 | -7/Lower Caves | Destroyed by G-47 Trooper with Particle Gun Last Messages --------------- 01523_ Searching scrap... 01523_ Found Hcp. Storage Unit. 01523_ Found Com. Battery. 01523_ Found Mak. Terrain Scan Processor. 01523_ Found Hardlight Generator. 01523_ Found 23 Matter. 01524_ Acquired 23 matter. 01557_ Dropped Spear. 01557_ Acquired Battle Rifle. 01569_ Acquired 45 matter. 01570_ Acquired 9 matter. 01572_ Xenon Bombardment Thruster destroyed. 01606_ Critical hit (Burn: +37). 01615_ Connecting with WAR.Sys... 01615_ Current location identified: Lower Caves >>Open Door Sealed Heavy Doors opened. 01617_ Acquired Mak. System Shield. 01619_ Discarded Adv. Terrain Scan Processor. 01620_ Acquired Mak. System Shield. Map ----- +----------------------------------------------------+ | ?????????????????????????????????????????????????? | | ?????????????????????????????????????????????????? | | ?????????????????????????????????????????????????? | | ?????????????????????????????????????????????????? | | ?????????????????????????????????????????????????? | | ?????????????????????????????????????????????????? | | ?????????????????????????????????????????????????? | | ?????????????????????????????????????????????????? | | ?????????????????????????????????????????????????? | | ?????????????????????????????????????????????????? | | ?????????????????????????????????????????????????? | | ?????????????????????????????????????????????????? | | ?????????????????????????????????????????????????? | | ?????????????????????????????????????????????????? | | ?????????????????????????????????????????????????? | | ?????????????????????????????????????????????????? | | ?????????????????????????????????????????????????? | | ????????????????????????#######??????????????????? | | ????????????????????????#== //#??????????????????? | | ????????????????????????#== #??????????????????? | | ????????????????????????#[[ #??????????????????? | | ????????????????????????####l##?####????#######??? | | ?????????????#######??????#X #### #????# #??? | | ????????###?## #?######gg# #?#### #??? | | ???????## ### ### # ## #?# #???? | | ??????## #?# ## @### #?# #????? | | ??????# ###### ### #????? | | ??????# ##??# ## #####? | | ??????### ## ##?## ## ## ## | | ???????## #### | | ??????## | | ??????# # # ### # | | ??????# # #### # ##?# ########## ## | | ??????# ##??# ###?## ##????????####? | | ??????# ###### #???# ##?????????????? | | ??????## ##### ### #??????????????? | | ???????# # #### ##?????????????? | | ???????##### ### #?????????????? | | ???????????# #### ## ##????????????? | | ???????????## ##??# #?????????? | | ????????????####### #?????????? | | ??????????????????# ### ## ## #?????????? | | ??????????????????# ###??##### ## #? #?????????? | | ????????????????? ??????????# #?##?? #?????????? | | ????????????????##???????????# #?????? ?????????? | | ?????????????????????????????# #??????? ????????? | | ????????????????????????????? ???????# ???????? | | ????????????????????????????? ???????? ???????? | | ????????????????????????????? ##????????????????? | | ????????????????????????????? ??????????????????? | +----------------------------------------------------+ Best States ------------- Heat Dissipation 34 Energy Generation 15 Energy Capacity 250 Matter Stores 300 Matter Capacity 300 Sight Range 18 Terrain Scan Density 410 Armor Coverage 225 Evasion (%) 64 Targeting Accuracy 6 Melee Accuracy 6 Defensive Hacking 11 Item Schematics ----------------- None Robot Schematics ------------------ None Fabricated ------------ Nothing Alien Tech Used ----------------- None Achievements -------------- None Challenges ------------ None Game ------ Seed PointySiegeInverter Manual? 0 Play Time 00:41:37 Cumulative 154.3 hours Start 2022.05.02 @ 04:32:02 End 2022.05.02 @ 05:25:52 Sessions 1 Manual Loads 0 Difficulty Rogue Special Mode None Game No. 246 Rogue 245 Adventurer 0 Explorer 1 Win Type - Total 7 Types 7/0/0/0/0/0/0/0/0 Lore% 60 Gallery% 62 Achievement% 52 Wizard Run 0 Options --------- ASCII 1 Keyboard 0 Movement Vi Keybinds 0 Fullscreen 1 Font 18/SmallcapsGlow Map View 76x50 Tactical HUD 1 Map Filters NONE Filters NONE Steam 1 RUN: fc3cc3d4-1cf9-45a4-8bc6-f7228134d913